Cogmind - Beta 13 X2 --- EXPLORER MODE // 2024.01.29 @ 09:45:19 // Winter2022/Polymind Player: arkn Result: Destroyed by G-67 Veteran with Plasma Rifle Performance ------------- Evolutions (1) 500 Regions Visited (5) 1000 Robots Destroyed (16) 80 Value Destroyed (360) 360 Prototype IDs (0) 0 Alien Tech Used (0) 0 Bonus (4092) 4092 TOTAL SCORE: 5232 Bonus ------- Polymind Skill 3260 Follower Combat Kills 232 Met Imprinter 300 Was Imprinted 300 Cogmind --------- Core Integrity 0/400 Matter 0/0 Energy 236/240 System Corruption 1% Temperature Cool (56) Movement Walking (120) Location -6/Proximity Caves Parts ------- > --- POWER (1) -------- Improved Deuterium Engine > --- PROPULSION (2) --- Carbon-fiber Leg Carbon-fiber Leg > --- UTILITY (3) ------ Improved Melee Analysis Suite Microactuators Core Shielding > --- WEAPON (1) ------- Axe > --- INVENTORY (1) ---- (None) Peak State ------------ > --- POWER ------------ Micro Nuclear Core > --- PROPULSION ------- Gravmag System Gravmag System > --- UTILITY ---------- Improved Heat Sink Improved Heat Sink Target Analyzer > --- WEAPON ----------- Shock Rifle Shock Rifle Remote Datajack > --- INVENTORY -------- (None) [Rating: 31] Favorites ----------- Power Light Ion Engine Engine Light Ion Engine Power Core Micro Nuclear Core Propulsion Hover Unit Treads Light Treads Leg Carbon-fiber Leg Hover Unit Hover Unit Flight Unit Flight Unit Utility Visual Processing Unit Device Sensor Array Processor Visual Processing Unit Protection Improved Light Armor Plating Weapon Shock Rifle Energy Gun Shock Rifle Ballistic Gun Light Assault Rifle Special Weapon Remote Datajack Impact Weapon Mace Slashing Weapon Axe Build | -11 -10 -9 -9 -7 -6 ------- Run | Yrd Mat Mat Min Zio Pro Slots Evolved . | . . . . . . Power . | . . . . . . Propulsion . | . . . . . . Utility . | . . . . . . Weapon . | . . . . . . Parts Attached . | . . . . . . Power . | . . . . . . Engine . | . . . . . . Core . | . . . . . . Reactor . | . . . . . . Propulsion . | . . . . . . Treads . | . . . . . . Leg . | . . . . . . Wheel . | . . . . . . Hover . | . . . . . . Flight . | . . . . . . Utility . | . . . . . . Device . | . . . . . . Storage . | . . . . . . Processor . | . . . . . . Hackware . | . . . . . . Protection . | . . . . . . Artifact . | . . . . . . Weapon . | . . . . . . Energy Gun . | . . . . . . Energy Cannon . | . . . . . . Ballistic Gun . | . . . . . . Ballistic Cannon . | . . . . . . Launcher . | . . . . . . Special Weapon . | . . . . . . Impact Weapon . | . . . . . . Slashing Weapon . | . . . . . . Piercing Weapon . | . . . . . . Special Melee Weapon . | . . . . . . Unidentified Prototypes . | . . . . . . Parts Lost 6 | . . . . . 6 Power 1 | . . . . . 1 Propulsion 2 | . . . . . 2 Utility 2 | . . . . . 2 Weapon 1 | . . . . . 1 Highest Loss Streak 4 | . . . . . 4 To Critical Strikes . | . . . . . . Average Slot Usage (%) 97 | . 93 100 100 100 96 Engine 13 | . 23 17 16 16 6 Core 2 | . . . . . 6 Hover 23 | . . 29 33 33 21 Flight 7 | . 46 5 . . . Device 14 | . . 14 16 16 18 Processor 21 | . . 29 33 33 16 Energy Gun 4 | . . . . . 13 Ballistic Gun 3 | . 23 2 . . . Special Weapon 2 | . . . . . 6 Naked Turns 17 | . 16 1 . . . Heaviest Build 20 | . 4 4 4 4 20 Greatest Support 40 | 3 8 12 12 12 40 Greatest Overweight (x) 1 | . . . . . 1 Average Overweight (x) . | . . . . . . Largest Inventory Capacity 5 | . . . . . 5 Average Capacity 1 | . . . . . 3 Most Carried . | . . . . . . Average Carried . | . . . . . . Final Capacity 1 | . . . . . 1 Final Carried . | . . . . . . Class Distribution -------------------- 59% | Watcher 21% | Programmer 15% | Swarmer Dominant Class ---------------- Swarmer | -10/Materials Watcher | -9/Materials Watcher | -9/Mines Watcher | -7/Zion Programmer | -6/Proximity Caves Resources | -11 -10 -9 -9 -7 -6 ----------- Run | Yrd Mat Mat Min Zio Pro Matter Collected 41 | . 41 . . . . Remotely . | . . . . . . Salvage Created 294 | . 232 . . . 62 Parts 31 | . 18 2 . . 11 Haulers Intercepted 2 | . 2 . . . . Recyclers Shooed . | . . . . . . Parts Field Recycled . | . . . . . . Retrieved Matter . | . . . . . . Parts Self-Destructed . | . . . . . . Prevented . | . . . . . . Kills | -11 -10 -9 -9 -7 -6 ------- Run | Yrd Mat Mat Min Zio Pro Combat Hostiles Destroyed 11 | . 5 1 . . 5 Melee 4 | . . 1 . . 3 Guns 7 | . 5 . . . 2 Classes Destroyed 7 | . 5 . . . 2 Worker 1 | . 1 . . . . Hauler 2 | . 2 . . . . Watcher 2 | . 1 . . . 1 Swarmer 6 | . 3 1 . . 2 Grunt 3 | . 2 . . . 1 Brawler 1 | . . . . . 1 Duelist 1 | . . . . . 1 Best Kill Streak 5 | . 5 1 . . 3 Combat Bots Only 3 | . 2 1 . . 3 Max Kills in Single Turn 1 | . 1 1 . . 1 Gunslinging . | . . . . . . Exploded . | . . . . . . Melee 1 | . . 1 . . 1 Uniques/NPCs Destroyed . | . . . . . . Combat | -11 -10 -9 -9 -7 -6 -------- Run | Yrd Mat Mat Min Zio Pro Hostile Shots Fired 174 | . 28 37 . . 109 Missed 67 | . 10 23 . . 34 Damage Taken 1298 | . 114 147 . . 1037 Core 459 | . 52 91 . . 316 Absorbed by Shields . | . . . . . . Redirected to Shielding 9 | . . . . . 9 Ignored by Resistances 707 | . 76 68 . . 563 Core Remaining (%) 89 | 100 79 . . . . Volleys Fired 46 | . 40 . . . 6 Largest 2 | . 1 . . . 2 Hottest 100 | . 20 . . . 100 Shots Fired 50 | . 40 . . . 10 Gun 50 | . 40 . . . 10 Cannon . | . . . . . . Launcher . | . . . . . . Special . | . . . . . . Kinetic 40 | . 40 . . . . Thermal . | . . . . . . Explosive . | . . . . . . Electromagnetic 10 | . . . . . 10 Robot Hit Streak 14 | . 14 . . . 4 Robot Miss Streak 4 | . 1 . . . 4 Penetration Max . | . . . . . . Secondary Targets 1 | . . . . . 1 Max Gunslinging Chain 1 | . . . . . 1 Shots Hit Robots 48 | . 36 . . . 12 Core Hits 32 | . 20 3 . . 9 Critical Kills . | . . . . . . Critical Parts Destroyed . | . . . . . . Critical Strikes 1 | . . . . . 1 Smash 1 | . . . . . 1 Melee Attacks 8 | . . . . . 8 Impact 2 | . . . . . 2 Slashing 6 | . . . . . 6 Piercing . | . . . . . . Sneak Attacks 1 | . . . . . 1 Combat Hostiles 1 | . . . . . 1 Follow-up Attacks . | . . . . . . Damage Inflicted 736 | . 301 44 . . 391 Guns 408 | . 301 . . . 107 Cannons . | . . . . . . Explosions . | . . . . . . Melee 278 | . . . . . 278 Ramming 50 | . . 44 . . 6 Kinetic 301 | . 301 . . . . Thermal . | . . . . . . Explosive . | . . . . . . Electromagnetic 107 | . . . . . 107 Impact 70 | . . . . . 70 Slashing 208 | . . . . . 208 Piercing . | . . . . . . Highest Corruption 2 | . . 2 2 2 1 Average Corruption 1 | . . 2 2 2 1 Corruption Purged . | . . . . . . Corruption Blocked . | . . . . . . Overload Shots . | . . . . . . Overflow Damage 7 | . . 3 . . 4 Projectiles . | . . . . . . Explosions . | . . . . . . Melee 7 | . . 3 . . 4 Knockbacks . | . . . . . . Impact . | . . . . . . Kinetic . | . . . . . . Secondary . | . . . . . . Self-Inflicted Damage 23 | . . 20 . . 3 Shots . | . . . . . . Rammed 20 | . . 19 . . 1 Targets Rammed 20 | . . 19 . . 1 Kicked . | . . . . . . Crushed . | . . . . . . Highest Temperature 103 | . 103 5 . . 82 Average Temperature 33 | . 33 3 . . 37 Received Heat Transfer 498 | . 90 33 . . 375 Siege Activations . | . . . . . . Robots Corrupted . | . . . . . . Combat Hostiles . | . . . . . . Parts Fried . | . . . . . . Impact Corruptions 2 | . . 1 . . 1 Robots Melted . | . . . . . . Combat Hostiles . | . . . . . . Parts Melted . | . . . . . . Heat Transferred . | . . . . . . Parts Sabotaged . | . . . . . . Parts Stolen . | . . . . . . Parts Stripped . | . . . . . . Power Chain Reactions . | . . . . . . Missiles Intercepted . | . . . . . . Alert | -11 -10 -9 -9 -7 -6 ------- Run | Yrd Mat Mat Min Zio Pro Peak Influence 294 | . 241 294 84 . . Initial 84 | . . 72 84 . . Average 151 | . 155 167 84 . . Maximum Alert Level 1 | . 1 1 . . . Low Security (%) 54 | 100 42 61 100 . . Level 1 45 | . 57 38 . . . Level 2 . | . . . . . . Level 3 . | . . . . . . Level 4 . | . . . . . . Level 5 . | . . . . . . High Security . | . . . . . . Max Security . | . . . . . . Squads Dispatched 2 | . 1 . . . 1 Investigation 1 | . 1 . . . . Extermination . | . . . . . . Reinforcement . | . . . . . . Assault 1 | . . . . . 1 Garrison . | . . . . . . Intercept . | . . . . . . Searches Triggered . | . . . . . . Construction Impeded . | . . . . . . Haulers Reinforced . | . . . . . . Active Scanning Responses . | . . . . . . Cargo Convoy Interrupts . | . . . . . . Stealth | -11 -10 -9 -9 -7 -6 --------- Run | Yrd Mat Mat Min Zio Pro Distress Signals 1 | . . 1 . . . Communications Jammed . | . . . . . . Distress Signals . | . . . . . . Times Spotted 61 | . 14 14 . . 33 Peak Tracking Total 11 | . 4 9 . . 11 Tactical Retreats 3 | . . 3 . . . Traps | -11 -10 -9 -9 -7 -6 ------- Run | Yrd Mat Mat Min Zio Pro Traps Triggered . | . . . . . . Indirectly . | . . . . . . Trap Hack Attempts . | . . . . . . Triggered . | . . . . . . Disarmed . | . . . . . . Reprogrammed . | . . . . . . Reused . | . . . . . . Traps Extracted . | . . . . . . Installed . | . . . . . . Triggered . | . . . . . . Machines | -11 -10 -9 -9 -7 -6 ---------- Run | Yrd Mat Mat Min Zio Pro Machines Disabled . | . . . . . . Max in Single Turn . | . . . . . . Machines Repaired . | . . . . . . Machines Dismantled . | . . . . . . Machines Sabotaged . | . . . . . . Overloaded Fab Kills . | . . . . . . Hacking | -11 -10 -9 -9 -7 -6 --------- Run | Yrd Mat Mat Min Zio Pro Machines Accessed 7 | . 6 1 . . . Terminals 5 | . 4 1 . . . Fabricators . | . . . . . . Repair Stations 1 | . 1 . . . . Recycling Units 1 | . 1 . . . . Scanalyzers . | . . . . . . Garrison Access . | . . . . . . Total Hacks 16 | . 14 2 . . . Successful 9 | . 7 2 . . . Failed 7 | . 7 . . . . Catastrophic . | . . . . . . Database Lockouts . | . . . . . . Manual 23 | . 14 2 . 7 . Terminals 14 | . 12 2 . . . Fabricators . | . . . . . . Repair Stations 1 | . 1 . . . . Recycling Units 1 | . 1 . . . . Scanalyzers . | . . . . . . Garrison Access . | . . . . . . Terminal Hacks 6 | . 4 2 . . . Branch Access Points 1 | . 1 . . . . Terminal Index 2 | . 1 1 . . . Fabricator Index 1 | . . 1 . . . Maintenance Status 1 | . 1 . . . . Transport Status 1 | . 1 . . . . Fabricator Hacks . | . . . . . . Repair Station Hacks . | . . . . . . Recycling Unit Hacks . | . . . . . . Scanalyzer . | . . . . . . Garrison Access Hacks . | . . . . . . Unauthorized Hacks 3 | . 3 . . . . Terminals 1 | . 1 . . . . Operators 1 | . 1 . . . . Fabricators . | . . . . . . Repair Stations 1 | . 1 . . . . Mechanics 1 | . 1 . . . . Recycling Units 1 | . 1 . . . . Tunnel 1 | . 1 . . . . Scanalyzers . | . . . . . . Garrison Access . | . . . . . . Data Cores Recovered . | . . . . . . Used . | . . . . . . Hacking Detections 5 | . 4 1 . . . Full Trace Events . | . . . . . . Feedback Events . | . . . . . . Feedback Blocked . | . . . . . . Robot Schematics Acquired 3 | . . . . 3 . Robots Built . | . . . . . . Authchips . | . . . . . . Time . | . . . . . . Total Robot Build Rating . | . . . . . . Part Schematics Acquired 15 | . . . . 15 . Parts Built . | . . . . . . Authchips . | . . . . . . Time . | . . . . . . Total Part Build Rating . | . . . . . . Parts Repaired . | . . . . . . Time . | . . . . . . Parts Recycled . | . . . . . . Recycled Matter . | . . . . . . Retrieved Matter . | . . . . . . Retrieved Components . | . . . . . . Parts Scanalyzed . | . . . . . . Part Schematics Acquired . | . . . . . . Parts Damaged . | . . . . . . Bothacking | -11 -10 -9 -9 -7 -6 ------------ Run | Yrd Mat Mat Min Zio Pro Used RIF Installer . | . . . . . . Robots Hacked 5 | . 1 1 . . 3 Non-combat 1 | . . 1 . . . Combat 4 | . 1 . . . 3 Robot Hacks Applied 6 | . 1 2 . . 3 map_route 1 | . . 1 . . . mark_security 1 | . . 1 . . . find_shortcuts 4 | . 1 . . . 3 Relay Couplers Released . | . . . . . . Fabnet Peak Effective % . | . . . . . . Robots Rewired . | . . . . . . Allies Hacked . | . . . . . . Hacks Repelled . | . . . . . . Allies | -11 -10 -9 -9 -7 -6 -------- Run | Yrd Mat Mat Min Zio Pro Total Allies 7 | . . . . 7 . Largest Group 7 | . . . . 7 7 Highest-Rated Group 244 | . . . . 244 244 Highest-Rated Ally 41 | . . . . 41 41 Total Orders . | . . . . . . Ally Attacks 34 | . . . . . 34 Total Damage 713 | . . . . . 713 Kills 6 | . . . . . 6 Allies Corrupted . | . . . . . . Allies Melted . | . . . . . . Intel | -11 -10 -9 -9 -7 -6 ------- Run | Yrd Mat Mat Min Zio Pro Robot Analysis Total 5 | . 1 1 . . 3 Derelict Logs Recovered 2 | . . . . . 2 Drone Launches . | . . . . . . Drone Recoveries . | . . . . . . Exploration | -11 -10 -9 -9 -7 -6 ------------- Run | Yrd Mat Mat Min Zio Pro Turns Passed 1844 | 5 291 172 49 700 627 Spaces Moved 2668 | 9 525 283 87 860 904 Core 40 | 9 30 1 . . . Treads 19 | . . . . . 19 Legs 3 | . . . . . 3 Wheels . | . . . . . . Hover 2074 | . . 245 87 860 882 Flight 532 | . 495 37 . . . Fastest Speed 37 | 50 37 37 56 56 56 Average Speed 53 | 50 37 53 56 56 59 Slowest Speed 160 | 50 50 56 56 56 160 Overloaded Moves . | . . . . . . Propulsion Burnouts . | . . . . . . Robots Hopped 4 | . 4 . . . . Cave-ins Triggered . | . . . . . . Exploration Rate (%) 52 | 2 83 32 27 87 85 Regions Visited 5 Branch Regions 3 Pre-discovered Areas 2 | . 1 . . 1 . Known Exits Taken 5 | 1 1 1 1 1 . Unknown Exits Taken . | . . . . . . Scrap Searched 3 | . . . . 1 2 Spaces Dug . | . . . . . . Terrain Destroyed . | . . . . . . Melee . | . . . . . . Projectile . | . . . . . . AOE . | . . . . . . Terrain Rammed . | . . . . . . Walls Destroyed . | . . . . . . Machines Disabled . | . . . . . . Actions | -11 -10 -9 -9 -7 -6 --------- Run | Yrd Mat Mat Min Zio Pro Total 3014 | 8 581 303 86 1077 959 Wait 271 | . 21 2 . 218 30 Move 2655 | 8 516 282 86 859 904 Hop 4 | . 4 . . . . Pick Up . | . . . . . . Fast Attach . | . . . . . . Attach . | . . . . . . Detach . | . . . . . . Swap . | . . . . . . Drop . | . . . . . . Fire 46 | . 40 . . . 6 Melee 8 | . . . . . 8 Ram 20 | . . 19 . . 1 Kick . | . . . . . . Crush . | . . . . . . Escape Stasis . | . . . . . . Rewire . | . . . . . . Trap . | . . . . . . Miscellaneous 10 | . . . . . 10 Route ------- -11/Scrapyard -10/Materials (discovered 4 exits: *Mat x3 / Min) -9/Materials -9/Mines (discovered 2 exits: *Mat / *Zio) -7/Zion (discovered 2 exits: *Dee / *Pro) -6/Proximity Caves History --------- Turn | Location | Event 1 | -11/Scrapyard | Identified exit to Materials 1 | -11/Scrapyard | Discovered exit to Materials (range 3) 6 | -11/Scrapyard | Entered Materials 32 | -10/Materials | Identified exit to Materials 32 | -10/Materials | Discovered exit to Materials (range 16) 108 | -10/Materials | Discovered exit to Materials (range 15) 176 | -10/Materials | Identified exit to Mines 232 | -10/Materials | Discovered exit to Materials (range 12) 297 | -10/Materials | Entered another Materials area 467 | -9/Materials | Identified exit to Mines 467 | -9/Materials | Discovered exit to Mines (range 6) 469 | -9/Materials | Entered Mines 510 | -9/Mines | Identified exit to Materials 510 | -9/Mines | Discovered exit to Materials (range 13) 515 | -9/Mines | A Derelict revealed a hidden shortcut to a safe place 517 | -9/Mines | Identified exit to Zion 518 | -9/Mines | Entered Zion 529 | -7/Zion | Given the Hacking Drone Bay 549 | -7/Zion | System corruption cleaned by Quarantine Array 614 | -7/Zion | Given A8's code to call for help 697 | -7/Zion | Imprinted 699 | -7/Zion | Declared Zion's savior 736 | -7/Zion | Gained Derelict followers 839 | -7/Zion | Acquired unknown access codes intercepted by a Zionite 888 | -7/Zion | Opened final containment barrier to the Deep Caves 896 | -7/Zion | Identified exit to Deep Caves 896 | -7/Zion | Discovered exit to Deep Caves (range 5) 897 | -7/Zion | Saw the warning signs outside the Deep Caves entrance 1066 | -7/Zion | Identified exit to Proximity Caves 1066 | -7/Zion | Discovered exit to Proximity Caves (range 17) 1218 | -7/Zion | Entered Proximity Caves 1218 | -6/Proximity Caves | Accompanied by 7 allies 1359 | -6/Proximity Caves | Lost 5 allies 1396 | -6/Proximity Caves | Learned Factory garrison access intel 1443 | -6/Proximity Caves | Core integrity fell below 50% 1764 | -6/Proximity Caves | Attracted the attention of an 0b10 outpost 1822 | -6/Proximity Caves | Core integrity fell below 20% 1824 | -6/Proximity Caves | Lost 4 parts (1p1n1u1w) 1845 | -6/Proximity Caves | Destroyed by G-67 Veteran with Plasma Rifle Last Messages --------------- 01794_ Extracted analysis data for B-48 Gladiator. 01795_ P-60 Hacker reactivates. 01799_ P-60 Hacker resets G-67 Veteran, system corruption cleaned. 01821_ Lgt. Treads severed. 01824_ Destroyed Imp. Melee Analysis Suite. 01824_ L-41 Fighter system corrupted by crushing effect. 01827_ Lgt. Treads severed. 01827_ L-41 Fighter suffers critical hit (Smash). 01827_ G-50 Soldier suffers critical hit (Burn). 01828_ Imp. Light Armor Plating destroyed. 01830_ Released control of B-48 Gladiator. 01830_ Took control of L-41 Fighter. 01830_ Extracted analysis data for L-41 Fighter. 01830_ Sneak attack on L-41 Fighter. 01830_ L-41 Fighter destroyed. 01831_ B-48 Gladiator reactivates. 01836_ B-48 Gladiator destroyed. 01839_ Acquired 36 Protomatter. 01842_ G-50 Soldier destroyed. 01844_ Acquired 38 Protomatter. Map ----- +----------------------------------------------------+ | | | ?????????????????????????????????????????????????? | | ?????????????????????????????????????????????????? | | ?????????????????????????????????????????????????? | | ?????????????????????????????????????????????????? | | ?????????????????????????????????????????????????? | | ?????????????????????????????????????????????????? | | ?????????????????????????????????????????????????? | | ?????????????????????????????????????????????????? | | ?????????????????????????????????????????????????? | | ?????????????????????????????????????????????????? | | ?????????????????????????????????????????????????? | | ?????????????????????????????????????????????????? | | ????????????????????????????????#????????????????? | | ??????????????????????????????" ##???????????????? | | #####????#####??????????##???#" "####????????????? | | # ###### #######??### ??#" #????????????? | | ## ##?# ## ?????????????? | | #?# # ???????????????? | | ### ????????????????? | | ?????????????????? | | ??????????????????? | | ## ## ???????????????????? | | #### ### ## #????????????????????? | | #####??## #### #?#g% #????????????????????? | | ????????## #### ###l=#?????????????????????? | | ??####???# #?# = =/##????????????????????? | | ?## ##??# ##?# g g #????????????????????? | | ## #??# ##?# ##### #????????????????????? | | # #?## #?# #?## ##????????????????????? | | # ### #?# ##?###?????????????????????? | | # ### #?????????????????????????? | | ### #?????????????????????????? | | ### #?## #?????????????????????????? | | #?# ##?## ##?????????????????????????? | | ###!!#### ##??????????????????????????? | | # ### #!=%## ##???????????????????????????? | | # ### ##%=[ ##????????????????????????????? | | # ## ###[[[ ##?????????????????????????????? | | ### ! *##??????????????????????????????? | | ##?## %= ##??????????????????????????????? | | ##???## ####???????????????????????????? | | ##????## ##??????????????????????????? | | ## #????## #??????????????????????????? | | #?# ##???# #??????????????????????????? | | ?## #???# [ #??????????????????????????? | | ## #???## %" #??????????????????????????? | | # ##???# "%"#??????????????????????????? | | # ### #???# " ###### #??????+????????????? | | ##??## #???# #???????????????????? | +----------------------------------------------------+ Best States ------------- Heat Dissipation 43 Energy Generation 21 Energy Capacity 240 Matter Stores 100 Matter Capacity 100 Sight Range 18 Robot Scan Range 14 Terrain Scan Density 10 Armor Coverage 150 Resistance: KI 35 Resistance: TH 35 Resistance: EX 60 Resistance: EM 100 Resistance: I 60 Resistance: S 60 Resistance: P 60 Core Shielding 20 Melee Speed Boost 20 Evasion (%) 62 Melee Accuracy 6 Target Analysis 5 Recoil Reduction 2 Offensive Hacking 20 Item Schematics ----------------- Nuclear Pulse Thruster | -7/Zion | Archive Greatsword | -7/Zion | Archive Arm. Medium Treads | -7/Zion | Archive Imp. Shock Absorption System | -7/Zion | Archive Adv. Assault Cannon | -7/Zion | Archive Power Sword | -7/Zion | Archive Shock Absorption System | -7/Zion | Archive Plasma Rifle | -7/Zion | Archive Component Analysis Suite | -7/Zion | Archive Imp. Particle Charger | -7/Zion | Archive Adv. ECM Suite | -7/Zion | Archive Focal Shield | -7/Zion | Archive Mak. Cloaking Device | -7/Zion | Archive Energy Filter | -7/Zion | Archive Mak. Laser | -7/Zion | Archive Robot Schematics ------------------ K-01 Serf | -7/Zion | Archive A-02 Transporter | -7/Zion | Archive O-24 Administrator | -7/Zion | Archive Fabricated ------------ Nothing Alien Tech Used ----------------- None Achievements -------------- Superinsulated Challenges ------------ None Polymind | -11 -10 -9 -9 -7 -6 ---------- Run | Yrd Mat Mat Min Zio Pro Hosts 5 | . 1 1 . . 3 Combat Hostiles 4 | . 1 . . . 3 Allies . | . . . . . . Unique Host Classes 5 | . 1 1 . . 3 Average Host Suspicion 51 | . 100 79 16 . 84 Unsuspicious Activity 26 | . . 6 . . 20 Returns to Shadow . | . . . . . . Fuzzy Dispatches . | . . . . . . Protomatter Created 436 | . 16 4 . 64 352 Used 155 | . 6 12 . . 137 Decayed 64 | . . . . 64 . Highest Spend 51 | . 6 12 . . 51 Top 5 Hosts by Kills: S-10 Pest (-10/Materials: 5) L-41 Fighter (-6/Proximity Caves: 3) P-60 Hacker (-6/Proximity Caves: 2) W-16 Scout (-9/Materials: 1) Game ------ Seed LinkedFrostAnalyzer Manual? 0 Play Time 00:29:14 Cumulative 127.9 hours Start 2024.01.29 @ 09:00:54 End 2024.01.29 @ 09:45:19 Sessions 1 Manual Loads 0 Difficulty Explorer Special Mode Winter2022/Polymind Game No. 107 Rogue 102 Adventurer 0 Explorer 5 Win Type - Total 3 Types 3/0/0/0/0/0/0/0/0 Lore% 41 Gallery% 54 Achievement% 46 Wizard Run 0 Options --------- ASCII 0 Keyboard 0 Movement Numpad Keybinds 0 Fullscreen 1 Font 24/Proggy Map View 113x50 Zoom Use 0% Tactical HUD 1 Map Filters NONE Filters NONE Steam 1 RUN: 31041c56-22d9-4ec6-abc0-9811b77e8307